{"text_format":"1","workbook":"xlsx","n_sheets":2,"sheets":["Parametri","CATALOGO"],"not_rendered":{"charts":0,"images":112,"macros":1,"external_links":0,"defined_names":0,"comments":0,"pivot_tables":0},"unopened":[],"bounds":{"document_bytes":16777216,"sheet_cells":100000,"rows_first":2000,"rows_last":500,"rows_between":2000,"halvings":0,"cell_chars":16384,"cell_head_chars":4096},"cells_cut":0,"cells_raw":0,"read":"whole","date_system":"1900"}

{"sheet":"Parametri","index":0,"n_rows":5,"n_cols":1,"rows_kept":5,"cut":false,"hidden":true,"merged":[]}
["DRIVER=SQL Server;SERVER=147.78.253.18;UID=sa;PWD=Sirio2017;"]
["147.78.253.18"]
["PP_BEESTORE"]
["sa"]
["Sirio2017"]

{"sheet":"CATALOGO","index":1,"n_rows":174,"n_cols":57,"rows_kept":174,"cut":false,"hidden":false,"merged":[]}
[0," "," "," "," "," "," "," ",null," "," "," "," "," "," ",null,null," "," "," "," "," ","INTERNATIONAL","INT","UNI","XXXS","XXS","XS","S","M","L","XL","XXL","XXXL","4XL",null,null,null,null,null,null,null,null,null,null,null,null,null,null,null,null,null,null,null," "," ",51]
[0," "," "," "," "," "," "," ",null," "," "," "," "," "," ",null,null," "," "," "," "," ","JUNIOR CLOTHING ","JC","4","6","8","10","12","14",null,null,null,null,null,null,null,null,null,null,null,null,null,null,null,null,null,null,null,null,null,null,null,null," "," ",51]
[0," "," "," "," "," "," "," ",null," "," "," "," "," "," ",null,null," "," "," "," "," ","JEANS","JEANS",null,"23","24","25","26","27","28","29","30","31","32","33","34","35","36","37","38","39","40","41","42",null,null,null,null,null,null,null,null,null," "," ",51]
[0," "," "," "," "," "," "," ",null," "," "," "," "," "," ",null,null," "," "," "," "," ","MAN CLOTHING IT/EU","MCIT/EU","40","34","42","44","46","48","50","52","54","56","58","60",null,null,null,null,null,null,null,null,null,null,null,null,null,null,null,null,null,null," "," ",51]
[0," "," "," "," "," "," "," ",null," "," "," "," "," "," ",null,null," "," "," "," "," ","MAN SHOES IT/EU","MSIT/EU",null,"38","38,5","39","39,5","40","40,5","41","41,5","42","42,5","43","43,5","44","44,5","45","45,5","46",null,null,null,null,null,null,null,null,null,null,null,null," "," ",51]
[0," "," "," "," "," "," "," ",null," "," "," "," "," "," ",null,null," "," "," "," "," ","WOMAN CLOTHING IT/EU","WCIT/EU","34","36","38","40","42","44","46","48",null,null,null,null,null,null,null,null,null,null,null,null,null,null,null,null,null,null,null,null,null,null," "," ",51]
[0," "," "," "," "," "," "," ",null," "," "," "," "," "," ",null,null," "," "," "," "," ","WOMAN SHOES IT","WSIT",null,"34","34,5","35","35,5","36","36,5","37","37,5","38","38,5","39","39,5","40","40,5","41","41,5","42",null,null,null,null,null,null,null,null,null,null,null,null," "," ",51]
[1,null,null,null,null,null,null,null,null,null,null,null,null,null,null,null,null,null,null,null,null,null,null,null,null,null,null,null,null,null,null,null,null,null,null,null,null,null,null,null,null,null,null,null,null,null,null,null,null,null,null,null,null,null,null,null,51]
[1,null,null,null,null,null,null,null,null,"Retail","Linea","Sesso","Reparto","Descrizione","Modello",null,null,"Variante","Marca","Materiale","Etichetta","Categoria","Scalarino","Scalarino",null,null,null,null,null,null,null,null,null,null,null,null,null,null,null,null,null,null,null,null,null,null,null,null,null,null,null,null,null,null,"Totale","TotalePrz",51]
[2,"NEIL BARRETTKIDSBottom Swimwear",null,null,null,null,null,null,null,"210","NEIL BARRETT","KIDS","CLOTHING","THUNDERBOLT SWIM TRUNKS","KCB002013272 554",null,null,"ND",null,null,null,"Bottom Swimwear","JUNIOR CLOTHING ","JC",null,null,null,null,1,null,null,null,null,null,null,null,null,null,null,null,null,null,null,null,null,null,null,null,null,null,null,null,null,null,{"$f":"SUM(Y10:BB10)","v":1},{"$f":"BC10*J10","v":210},51]
[2,"NEIL BARRETTKIDSHoodie",null,null,null,null,null,null,null,"225","NEIL BARRETT","KIDS","CLOTHING","FAIRSLE THUNDER HOODIE","KJS006013121 554",null,null,"ND",null,null,null,"Hoodie","JUNIOR CLOTHING ","JC",null,null,1,null,null,null,null,null,null,null,null,null,null,null,null,null,null,null,null,null,null,null,null,null,null,null,null,null,null,null,1,{"$f":"BC11*J11","v":225},51]
[2,"NEIL BARRETTKIDSShorts",null,null,null,null,null,null,null,"180","NEIL BARRETT","KIDS","CLOTHING","SHORT JERSEY","KJP004013097 01",null,null,"ND",null,null,"Trousers & Shorts","Shorts","JUNIOR CLOTHING ","JC",null,null,null,1,1,null,null,null,null,null,null,null,null,null,null,null,null,null,null,null,null,null,null,null,null,null,null,null,null,null,2,360,51]
[2,"NEIL BARRETTKIDSShorts",null,null,null,null,null,null,null,"180","NEIL BARRETT","KIDS","CLOTHING","SHORT JERSEY","KJP004013097 364",null,null,"ND",null,null,"Trousers & Shorts","Shorts","JUNIOR CLOTHING ","JC",null,null,null,null,1,2,null,null,null,null,null,null,null,null,null,null,null,null,null,null,null,null,null,null,null,null,null,null,null,null,3,540,51]
[2,"NEIL BARRETTKIDSShorts",null,null,null,null,null,null,null,"105","NEIL BARRETT","KIDS","CLOTHING","SCRIBBLED THUNDER SHORTS","KJP042020621 01",null,null,"ND",null,null,"Trousers & Shorts","Shorts","JUNIOR CLOTHING ","JC",null,1,null,1,null,null,null,null,null,null,null,null,null,null,null,null,null,null,null,null,null,null,null,null,null,null,null,null,null,null,2,210,51]
[2,"NEIL BARRETTKIDSSweatshirt",null,null,null,null,null,null,null,"185","NEIL BARRETT","KIDS","CLOTHING","SCRIBBLED THUNDER SWEATSHIRT","KJS090020620 364",null,null,"ND",null,null,"Sweatshirts","Sweatshirt","JUNIOR CLOTHING ","JC",null,null,null,null,2,null,null,null,null,null,null,null,null,null,null,null,null,null,null,null,null,null,null,null,null,null,null,null,null,null,2,370,51]
[2,"NEIL BARRETTKIDST-Shirt",null,null,null,null,null,null,null,"60","NEIL BARRETT","KIDS","CLOTHING","MIRRORED THUNDER T-SHIRT","KJT061020633 524",null,null,"ND",null,null,null,"T-Shirt","JUNIOR CLOTHING ","JC",null,null,1,null,null,null,null,null,null,null,null,null,null,null,null,null,null,null,null,null,null,null,null,null,null,null,null,null,null,null,1,60,51]
[2,"NEIL BARRETTKIDST-Shirt",null,null,null,null,null,null,null,"60","NEIL BARRETT","KIDS","CLOTHING","SCRIBBLED BEAR T-SHIRT","KJT073020617 03",null,null,"ND",null,null,null,"T-Shirt","JUNIOR CLOTHING ","JC",null,1,1,null,null,null,null,null,null,null,null,null,null,null,null,null,null,null,null,null,null,null,null,null,null,null,null,null,null,null,2,120,51]
[2,"NEIL BARRETTMANBackpacks",null,null,null,null,null,null,null,"390","NEIL BARRETT","MAN","BAGS","DRAWSTRING BACKPACK","BBO952X9100 01",null,null,"ND",null,null,null,"Backpacks","INTERNATIONAL","INT",30,null,null,null,null,null,null,null,null,null,null,null,null,null,null,null,null,null,null,null,null,null,null,null,null,null,null,null,null,null,30,11700,51]
[2,"NEIL BARRETTMANBag",null,null,null,null,null,null,null,"0","NEIL BARRETT","MAN","BAGS","TECH COTTON BAG","BBO247BM9110 01",null,null,"ND",null,null,null,"Bag","INTERNATIONAL","INT",2,null,null,null,null,null,null,null,null,null,null,null,null,null,null,null,null,null,null,null,null,null,null,null,null,null,null,null,null,null,2,0,51]
[2,"NEIL BARRETTMANBag",null,null,null,null,null,null,null,"0","NEIL BARRETT","MAN","BAGS","NEW PRINTED PVC BAG","BBO253M9115 0101",null,null,"ND",null,null,null,"Bag","INTERNATIONAL","INT",3,null,null,null,null,null,null,null,null,null,null,null,null,null,null,null,null,null,null,null,null,null,null,null,null,null,null,null,null,null,3,0,51]
[2,"NEIL BARRETTMANBag",null,null,null,null,null,null,null,"0","NEIL BARRETT","MAN","BAGS","NEW PRINTED PVC BAG","BBO253M9115 2000",null,null,"ND",null,null,null,"Bag","INTERNATIONAL","INT",3,null,null,null,null,null,null,null,null,null,null,null,null,null,null,null,null,null,null,null,null,null,null,null,null,null,null,null,null,null,3,0,51]
[2,"NEIL BARRETTMANBag",null,null,null,null,null,null,null,"0","NEIL BARRETT","MAN","BAGS","NEW PRINTED PVC BAG","BBO253M9115 2019",null,null,"ND",null,null,null,"Bag","INTERNATIONAL","INT",3,null,null,null,null,null,null,null,null,null,null,null,null,null,null,null,null,null,null,null,null,null,null,null,null,null,null,null,null,null,3,0,51]
[2,"NEIL BARRETTMANBag",null,null,null,null,null,null,null,"0","NEIL BARRETT","MAN","BAGS","NEW PRINTED PVC BAG","BBO253M9115 2489",null,null,"ND",null,null,null,"Bag","INTERNATIONAL","INT",3,null,null,null,null,null,null,null,null,null,null,null,null,null,null,null,null,null,null,null,null,null,null,null,null,null,null,null,null,null,3,0,51]
[2,"NEIL BARRETTMANBag",null,null,null,null,null,null,null,"750","NEIL BARRETT","MAN","BAGS","FLAMES + TIGER ","PBBO201DM9104 1133",null,null,"ND",null,null,null,"Bag","INTERNATIONAL","INT",1,null,null,null,null,null,null,null,null,null,null,null,null,null,null,null,null,null,null,null,null,null,null,null,null,null,null,null,null,null,1,750,51]
[2,"NEIL BARRETTMANBag",null,null,null,null,null,null,null,"800","NEIL BARRETT","MAN","BAGS","BOLT POCKET NYL","PBBO201NM9106 2131",null,null,"ND",null,null,null,"Bag","INTERNATIONAL","INT",3,null,null,null,null,null,null,null,null,null,null,null,null,null,null,null,null,null,null,null,null,null,null,null,null,null,null,null,null,null,3,2400,51]
[2,"NEIL BARRETTMANBag",null,null,null,null,null,null,null,"350","NEIL BARRETT","MAN","BAGS","TIGER BOLT  NYL","PBBO232CM9103 524",null,null,"ND",null,null,null,"Bag","INTERNATIONAL","INT",2,null,null,null,null,null,null,null,null,null,null,null,null,null,null,null,null,null,null,null,null,null,null,null,null,null,null,null,null,null,2,700,51]
[2,"NEIL BARRETTMANBag",null,null,null,null,null,null,null,"485","NEIL BARRETT","MAN","BAGS","TIGER BOLT  NYL","PBBO245DM9104 1133",null,null,"ND",null,null,null,"Bag","INTERNATIONAL","INT",2,null,null,null,null,null,null,null,null,null,null,null,null,null,null,null,null,null,null,null,null,null,null,null,null,null,null,null,null,null,2,970,51]
[2,"NEIL BARRETTMANBag",null,null,null,null,null,null,null,"485","NEIL BARRETT","MAN","BAGS","BOLT  POCKET NYL","PBBO246MM9105 01",null,null,"ND",null,null,null,"Bag","INTERNATIONAL","INT",2,null,null,null,null,null,null,null,null,null,null,null,null,null,null,null,null,null,null,null,null,null,null,null,null,null,null,null,null,null,2,970,51]
[2,"NEIL BARRETTMANBaseball Cap",null,null,null,null,null,null,null,"280","NEIL BARRETT","MAN","ACCESSORIES","BASEBALL CAP","BCP167LA9510 291",null,null,"ND",null,null,"Hats","Baseball Cap","INTERNATIONAL","INT",1,null,null,null,null,null,null,null,null,null,null,null,null,null,null,null,null,null,null,null,null,null,null,null,null,null,null,null,null,null,1,280,51]
[2,"NEIL BARRETTMANBaseball Cap",null,null,null,null,null,null,null,"415","NEIL BARRETT","MAN","ACCESSORIES","BASEBALL CAP","PBCP167GE9504 052",null,null,"ND",null,null,"Hats","Baseball Cap","INTERNATIONAL","INT",2,null,null,null,null,null,null,null,null,null,null,null,null,null,null,null,null,null,null,null,null,null,null,null,null,null,null,null,null,null,2,830,51]
[2,"NEIL BARRETTMANBelt Bag",null,null,null,null,null,null,null,"290","NEIL BARRETT","MAN","BAGS","BELT BAG","BBO954X9100 01",null,null,"ND",null,null,null,"Belt Bag","INTERNATIONAL","INT",10,null,null,null,null,null,null,null,null,null,null,null,null,null,null,null,null,null,null,null,null,null,null,null,null,null,null,null,null,null,10,2900,51]
[2,"NEIL BARRETTMANBelts",null,null,null,null,null,null,null,"119","NEIL BARRETT","MAN","ACCESSORIES","DRESS BELT 3CM","BCI900X9300 425",null,null,"ND",null,null,"Outerwear","Belts","INTERNATIONAL","INT",null,null,null,null,6,7,7,null,null,null,null,null,null,null,null,null,null,null,null,null,null,null,null,null,null,null,null,null,null,null,20,2380,51]
[2,"NEIL BARRETTMANBottom Swimwear",null,null,null,null,null,null,null,"185","NEIL BARRETT","MAN","CLOTHING","THUNDERBLOT SWIM","PBCB87OG042S 526",null,null,"ND",null,null,null,"Bottom Swimwear","INTERNATIONAL","INT",null,null,null,null,null,1,null,null,null,null,null,null,null,null,null,null,null,null,null,null,null,null,null,null,null,null,null,null,null,null,1,185,51]
[2,"NEIL BARRETTMANBow Tie",null,null,null,null,null,null,null,"105","NEIL BARRETT","MAN","ACCESSORIES","NEW BERKLEY SATIN BOW TIE","PBCR76BM9404 01",null,null,"ND",null,null,null,"Bow Tie","INTERNATIONAL","INT",1,null,null,null,null,null,null,null,null,null,null,null,null,null,null,null,null,null,null,null,null,null,null,null,null,null,null,null,null,null,1,105,51]
[2,"NEIL BARRETTMANCard Holder",null,null,null,null,null,null,null,"130","NEIL BARRETT","MAN","ACCESSORIES","FLAT CARD HOLDER","PBSG300H9200 01",null,null,"ND",null,null,"Wallets & Small Accessories","Card Holder","INTERNATIONAL","INT",1,null,null,null,null,null,null,null,null,null,null,null,null,null,null,null,null,null,null,null,null,null,null,null,null,null,null,null,null,null,1,130,51]
[2,"NEIL BARRETTMANCoats",null,null,null,null,null,null,null,"230","NEIL BARRETT","MAN","CLOTHING","LEATHER COLLAR","BCA292CM092C 1011",null,null,"ND",null,null,"Outerwear","Coats","MAN CLOTHING IT/EU","MCIT/EU",null,null,null,null,1,1,null,null,null,null,null,null,null,null,null,null,null,null,null,null,null,null,null,null,null,null,null,null,null,null,2,460,51]
[2,"NEIL BARRETTMANCoats",null,null,null,null,null,null,null,"1360","NEIL BARRETT","MAN","CLOTHING","TRANSPARENT PVC ","BCA297UM121 246",null,null,"ND",null,null,"Outerwear","Coats","MAN CLOTHING IT/EU","MCIT/EU",null,null,null,null,null,2,1,null,null,null,null,null,null,null,null,null,null,null,null,null,null,null,null,null,null,null,null,null,null,null,3,4080,51]
[2,"NEIL BARRETTMANCoats",null,null,null,null,null,null,null,"1580","NEIL BARRETT","MAN","CLOTHING","SHINJUKU-SOHO P","BCA299SAM097 1874",null,null,"ND",null,null,"Outerwear","Coats","MAN CLOTHING IT/EU","MCIT/EU",null,null,null,null,1,2,null,null,null,null,null,null,null,null,null,null,null,null,null,null,null,null,null,null,null,null,null,null,null,null,3,4740,51]
[2,"NEIL BARRETTMANCoats",null,null,null,null,null,null,null,"1665","NEIL BARRETT","MAN","CLOTHING","OVERSIZE ABSTRA","BCA304JM129 2422",null,null,"ND",null,null,"Outerwear","Coats","MAN CLOTHING IT/EU","MCIT/EU",null,null,null,null,null,1,null,null,null,null,null,null,null,null,null,null,null,null,null,null,null,null,null,null,null,null,null,null,null,null,1,1665,51]
[2,"NEIL BARRETTMANCoats",null,null,null,null,null,null,null,"2340","NEIL BARRETT","MAN","CLOTHING","CASHWOOL STANDA ","PBCA283M067C 01",null,null,"ND",null,null,"Outerwear","Coats","MAN CLOTHING IT/EU","MCIT/EU",null,null,null,null,1,null,null,null,null,null,null,null,null,null,null,null,null,null,null,null,null,null,null,null,null,null,null,null,null,null,1,2340,51]
[2,"NEIL BARRETTMANCoin Pouch",null,null,null,null,null,null,null,"250","NEIL BARRETT","MAN","ACCESSORIES","COIN POUCH","BSG902X9200 01",null,null,"ND",null,null,"Wallets & Small Accessories","Coin Pouch","INTERNATIONAL","INT",30,null,null,null,null,null,null,null,null,null,null,null,null,null,null,null,null,null,null,null,null,null,null,null,null,null,null,null,null,null,30,7500,51]
[2,"NEIL BARRETTMANFlip-Flops",null,null,null,null,null,null,null,"75","NEIL BARRETT","MAN","SHOES","THUNDERBOLT FLIP-FLOPS","PBSA50E9000 524",null,null,"ND",null,null,null,"Flip-Flops","INTERNATIONAL","INT",null,null,null,null,null,1,null,null,null,null,null,null,null,null,null,null,null,null,null,null,null,null,null,null,null,null,null,null,null,null,{"$f":"SUM(Y42:BB42)","v":1},75,51]
[2,"NEIL BARRETTMANHat",null,null,null,null,null,null,null,"190","NEIL BARRETT","MAN","ACCESSORIES","PIERCED BUCKET HAT","PBCP215AM9500 01",null,null,"ND",null,null,"Hats","Hat","INTERNATIONAL","INT",2,null,null,null,null,null,null,null,null,null,null,null,null,null,null,null,null,null,null,null,null,null,null,null,null,null,null,null,null,null,2,380,51]
[2,"NEIL BARRETTMANHat",null,null,null,null,null,null,null,"190","NEIL BARRETT","MAN","ACCESSORIES","PIERCED BUCKET HAT","PBCP215AM9507 118",null,null,"ND",null,null,"Hats","Hat","INTERNATIONAL","INT",6,null,null,null,null,null,null,null,null,null,null,null,null,null,null,null,null,null,null,null,null,null,null,null,null,null,null,null,null,null,6,1140,51]
[2,"NEIL BARRETTMANHat",null,null,null,null,null,null,null,"235","NEIL BARRETT","MAN","ACCESSORIES"," HAT","PBCP272BM9511 01",null,null,"ND",null,null,"Hats","Hat","INTERNATIONAL","INT",4,null,null,null,null,null,null,null,null,null,null,null,null,null,null,null,null,null,null,null,null,null,null,null,null,null,null,null,null,null,4,940,51]
[2,"NEIL BARRETTMANHoodie",null,null,null,null,null,null,null,"425","NEIL BARRETT","MAN","CLOTHING","ROBOT LINES HOODIE","PXJS8431BV 524",null,null,"ND",null,null,null,"Hoodie","INTERNATIONAL","INT",null,null,null,null,null,null,null,1,null,null,null,null,null,null,null,null,null,null,null,null,null,null,null,null,null,null,null,null,null,null,1,425,51]
[2,"NEIL BARRETTMANHoodie",null,null,null,null,null,null,null,"335","NEIL BARRETT","MAN","CLOTHING","DRAWSTRING HOODIE","PXJS8731BV 526",null,null,"ND",null,null,null,"Hoodie","INTERNATIONAL","INT",null,null,null,null,null,1,1,null,null,null,null,null,null,null,null,null,null,null,null,null,null,null,null,null,null,null,null,null,null,null,2,670,51]
[2,"NEIL BARRETTMANJacket",null,null,null,null,null,null,null,"1565","NEIL BARRETT","MAN","CLOTHING","PRINTED SKINNY ","BSP449SM116 2408",null,null,"ND",null,null,null,"Jacket","INTERNATIONAL","INT",null,null,null,null,null,1,1,null,null,null,null,null,null,null,null,null,null,null,null,null,null,null,null,null,null,null,null,null,null,null,2,3130,51]
[2,"NEIL BARRETTMANJacket",null,null,null,null,null,null,null,"1300","NEIL BARRETT","MAN","CLOTHING","SKINNY PADDED C","BSP473CM109C 2429",null,null,"ND",null,null,"Outerwear","Jacket","INTERNATIONAL","INT",null,null,null,null,null,2,null,null,null,null,null,null,null,null,null,null,null,null,null,null,null,null,null,null,null,null,null,null,null,null,2,2600,51]
[2,"NEIL BARRETTMANJeans",null,null,null,null,null,null,null,"280","NEIL BARRETT","MAN","CLOTHING","MULTI POCKET JEANS","BDE103B806T 01",null,null,"ND",null,null,null,"Jeans","JEANS","JEANS",null,null,null,null,null,null,null,1,null,1,null,null,null,null,null,null,null,null,null,null,null,null,null,null,null,null,null,null,null,null,2,560,51]
[2,"NEIL BARRETTMANJeans",null,null,null,null,null,null,null,"500","NEIL BARRETT","MAN","CLOTHING","FIVE POCKETS","BDE275BHM802S 2429",null,null,"ND",null,null,null,"Jeans","JEANS","JEANS",null,null,null,null,null,null,null,1,null,null,null,1,null,null,null,null,null,null,null,null,null,null,null,null,null,null,null,null,null,null,2,1000,51]
[2,"NEIL BARRETTMANKey Chain",null,null,null,null,null,null,null,"150","NEIL BARRETT","MAN","ACCESSORIES","RUBBER PATCH  KEYCHAIN","BSG905X9202 439",null,null,"ND",null,null,"Wallets & Small Accessories","Key Chain","INTERNATIONAL","INT",5,null,null,null,null,null,null,null,null,null,null,null,null,null,null,null,null,null,null,null,null,null,null,null,null,null,null,null,null,null,5,750,51]
[2,"NEIL BARRETTMANKnitwear",null,null,null,null,null,null,null,"675","NEIL BARRETT","MAN","CLOTHING","PUNKED MODERNIS","BMA1006M633 1500",null,null,"ND",null,null,"Knitwear","Knitwear","INTERNATIONAL","INT",null,null,null,null,1,null,null,null,null,null,null,null,null,null,null,null,null,null,null,null,null,null,null,null,null,null,null,null,null,null,1,675,51]
[2,"NEIL BARRETTMANKnitwear",null,null,null,null,null,null,null,"445","NEIL BARRETT","MAN","CLOTHING","VARSITY MODERNIST KNIT","PBMA955AM616C 1654",null,null,"ND",null,null,"Knitwear","Knitwear","INTERNATIONAL","INT",null,null,null,null,null,null,1,null,null,null,null,null,null,null,null,null,null,null,null,null,null,null,null,null,null,null,null,null,null,null,1,445,51]
[2,"NEIL BARRETTMANKnitwear",null,null,null,null,null,null,null,"395","NEIL BARRETT","MAN","CLOTHING","DOUBLE BOLT WOOL KNIT","PBMA966M614 2310",null,null,"ND",null,null,"Knitwear","Knitwear","INTERNATIONAL","INT",null,null,null,null,null,null,1,null,null,null,null,null,null,null,null,null,null,null,null,null,null,null,null,null,null,null,null,null,null,null,1,395,51]
[2,"NEIL BARRETTMANKnitwear",null,null,null,null,null,null,null,"335","NEIL BARRETT","MAN","CLOTHING","ROBOT LINES SWEAT","PXMA3221A6 524",null,null,"ND",null,null,null,"Knitwear","INTERNATIONAL","INT",null,null,null,null,null,1,null,null,null,null,null,null,null,null,null,null,null,null,null,null,null,null,null,null,null,null,null,null,null,null,1,335,51]
[2,"NEIL BARRETTMANLong sleeve shirt",null,null,null,null,null,null,null,"405","NEIL BARRETT","MAN","CLOTHING","STRETCH POPELIN SHIRT","BCM1254SM029S 069",null,null,"ND",null,null,null,"Long sleeve shirt","INTERNATIONAL","INT",null,null,null,null,null,null,null,1,null,null,null,null,null,null,null,null,null,null,null,null,null,null,null,null,null,null,null,null,null,null,1,405,51]
[2,"NEIL BARRETTMANScarves",null,null,null,null,null,null,null,"0","NEIL BARRETT","MAN","ACCESSORIES","TARTAN MOHAIR SCARF","BAC550M9417 1495",null,null,"ND",null,null,null,"Scarves","INTERNATIONAL","INT",1,null,null,null,null,null,null,null,null,null,null,null,null,null,null,null,null,null,null,null,null,null,null,null,null,null,null,null,null,null,1,0,51]
[2,"NEIL BARRETTMANShirt",null,null,null,null,null,null,null,"470","NEIL BARRETT","MAN","CLOTHING","TENCEL POPELINE","BCM1276SM078 2405",null,null,"ND",null,null,null,"Shirt","INTERNATIONAL","INT",null,null,null,null,1,null,null,null,null,null,null,null,null,null,null,null,null,null,null,null,null,null,null,null,null,null,null,null,null,null,1,470,51]
[2,"NEIL BARRETTMANShirt",null,null,null,null,null,null,null,"275","NEIL BARRETT","MAN","CLOTHING","TIGER BOLT JERSEY T-SHIRT","BJT553SM508S 524",null,null,"ND",null,null,null,"Shirt","INTERNATIONAL","INT",null,null,null,null,null,null,null,null,1,null,null,null,null,null,null,null,null,null,null,null,null,null,null,null,null,null,null,null,null,null,1,275,51]
[2,"NEIL BARRETTMANShirt",null,null,null,null,null,null,null,"275","NEIL BARRETT","MAN","CLOTHING","TIGER BOLT JERSEY T-SHIRT","BJT553SM508S 526",null,null,"ND",null,null,null,"Shirt","INTERNATIONAL","INT",null,null,null,null,null,null,null,null,2,null,null,null,null,null,null,null,null,null,null,null,null,null,null,null,null,null,null,null,null,null,2,550,51]
[2,"NEIL BARRETTMANShirt",null,null,null,null,null,null,null,"270","NEIL BARRETT","MAN","CLOTHING","BOYS GIRLS BOYS T-SHIRT","BJT607SM559S 2453",null,null,"ND",null,null,null,"Shirt","INTERNATIONAL","INT",null,null,null,null,null,null,null,null,1,null,null,null,null,null,null,null,null,null,null,null,null,null,null,null,null,null,null,null,null,null,1,270,51]
[2,"NEIL BARRETTMANShirt",null,null,null,null,null,null,null,"395","NEIL BARRETT","MAN","CLOTHING","SHINJUKU-SOHO T-SHIRT","BJT609SM558S 1874",null,null,"ND",null,null,null,"Shirt","INTERNATIONAL","INT",null,null,null,1,null,null,1,null,null,null,null,null,null,null,null,null,null,null,null,null,null,null,null,null,null,null,null,null,null,null,2,790,51]
[2,"NEIL BARRETTMANShirt",null,null,null,null,null,null,null,"380","NEIL BARRETT","MAN","CLOTHING","RIPPED BAND T-SHIRT","BJT621SM575S 01",null,null,"ND",null,null,null,"Shirt","INTERNATIONAL","INT",null,null,null,null,null,1,null,null,1,null,null,null,null,null,null,null,null,null,null,null,null,null,null,null,null,null,null,null,null,null,2,760,51]
[2,"NEIL BARRETTMANShirt",null,null,null,null,null,null,null,"280","NEIL BARRETT","MAN","CLOTHING","MOUTH-JULIE VE T-SHIRT","BJT642SM504P 2487",null,null,"ND",null,null,null,"Shirt","INTERNATIONAL","INT",null,null,null,null,1,null,null,null,null,null,null,null,null,null,null,null,null,null,null,null,null,null,null,null,null,null,null,null,null,null,1,280,51]
[2,"NEIL BARRETTMANShirt",null,null,null,null,null,null,null,"315","NEIL BARRETT","MAN","CLOTHING","TRAVEL STRETCH SHIRT","PBCM1178DM023C 526",null,null,"ND",null,null,null,"Shirt","INTERNATIONAL","INT",null,null,null,1,null,null,null,null,null,null,null,null,null,null,null,null,null,null,null,null,null,null,null,null,null,null,null,null,null,null,1,315,51]
[2,"NEIL BARRETTMANShirt",null,null,null,null,null,null,null,"470","NEIL BARRETT","MAN","CLOTHING","TIGER BOLT SHIRT","PBCM1200SM005S 526",null,null,"ND",null,null,null,"Shirt","INTERNATIONAL","INT",null,null,null,1,1,4,2,2,null,null,null,null,null,null,null,null,null,null,null,null,null,null,null,null,null,null,null,null,null,null,10,4700,51]
[2,"NEIL BARRETTMANShirt",null,null,null,null,null,null,null,"395","NEIL BARRETT","MAN","CLOTHING","STRETCH METEORITE SHIRT","PBCM1208CM007S 526",null,null,"ND",null,null,null,"Shirt","INTERNATIONAL","INT",null,null,null,2,4,2,null,3,null,null,null,null,null,null,null,null,null,null,null,null,null,null,null,null,null,null,null,null,null,null,11,4345,51]
[2,"NEIL BARRETTMANShirt",null,null,null,null,null,null,null,"370","NEIL BARRETT","MAN","CLOTHING","STRETCH  SHIRT","PBCM1212CM032C 526",null,null,"ND",null,null,null,"Shirt","INTERNATIONAL","INT",null,null,null,null,2,null,null,null,null,null,null,null,null,null,null,null,null,null,null,null,null,null,null,null,null,null,null,null,null,null,2,740,51]
[2,"NEIL BARRETTMANSkinny Jeans",null,null,null,null,null,null,null,"500","NEIL BARRETT","MAN","CLOTHING","SUPER SKINNY LEG JEANS","BDE002F9802 1852",null,null,"ND",null,null,null,"Skinny Jeans","JEANS","JEANS",null,null,null,null,null,null,null,null,null,null,null,null,2,null,null,null,null,null,null,null,null,null,null,null,null,null,null,null,null,null,2,1000,51]
[2,"NEIL BARRETTMANSkinny Jeans",null,null,null,null,null,null,null,"500","NEIL BARRETT","MAN","CLOTHING","SUPER SKINNY LEG JEANS","BDE002F9804 495",null,null,"ND",null,null,null,"Skinny Jeans","JEANS","JEANS",null,null,null,null,null,null,null,null,null,null,null,null,null,null,1,null,null,null,null,null,null,null,null,null,null,null,null,null,null,null,1,500,51]
[2,"NEIL BARRETTMANSkinny Jeans",null,null,null,null,null,null,null,"500","NEIL BARRETT","MAN","CLOTHING","SUPER SKINNY LEG JEANS","BDE003F9803 399",null,null,"ND",null,null,null,"Skinny Jeans","JEANS","JEANS",null,null,null,null,null,null,null,null,null,null,null,null,null,null,1,null,null,null,null,null,null,null,null,null,null,null,null,null,null,null,1,500,51]
[2,"NEIL BARRETTMANSmall Leather Goods",null,null,null,null,null,null,null,"1174","NEIL BARRETT","MAN","ACCESSORIES","MEDIUM ZIPPED P","PBSG151H9200 554",null,null,"ND",null,null,null,"Small Leather Goods","INTERNATIONAL","INT",1,null,null,null,null,null,null,null,null,null,null,null,null,null,null,null,null,null,null,null,null,null,null,null,null,null,null,null,null,null,1,1174,51]
[2,"NEIL BARRETTMANSmall Leather Goods",null,null,null,null,null,null,null,"180","NEIL BARRETT","MAN","ACCESSORIES","SOLID PEBBLED WALLET","PBSG190EM9206 01",null,null,"ND",null,null,null,"Small Leather Goods","INTERNATIONAL","INT",3,null,null,null,null,null,null,null,null,null,null,null,null,null,null,null,null,null,null,null,null,null,null,null,null,null,null,null,null,null,{"$f":"SUM(Y74:BB74)","v":3},540,51]
[2,"NEIL BARRETTMANSmall Leather Goods",null,null,null,null,null,null,null,"140","NEIL BARRETT","MAN","ACCESSORIES","SOLID PEBBLED WALLET","PBSG191EM9206 01",null,null,"ND",null,null,null,"Small Leather Goods","INTERNATIONAL","INT",3,null,null,null,null,null,null,null,null,null,null,null,null,null,null,null,null,null,null,null,null,null,null,null,null,null,null,null,null,null,3,{"$f":"BC75*J75","v":420},51]
[2,"NEIL BARRETTMANSneakers",null,null,null,null,null,null,null,"560","NEIL BARRETT","MAN","SHOES","URBAN RUNNER","BCT900X9001 0101",null,null,"ND",null,null,null,"Sneakers","MAN SHOES IT/EU","MSIT/EU",null,null,null,7,null,11,null,9,null,9,null,6,null,4,null,3,null,null,null,null,null,null,null,null,null,null,null,null,null,null,49,27440,51]
[2,"NEIL BARRETTMANSneakers",null,null,null,null,null,null,null,"290","NEIL BARRETT","MAN","SHOES","BOLT LACE-UP SNEAKERS","BCT907X9005 717",null,null,"ND",null,null,null,"Sneakers","MAN SHOES IT/EU","MSIT/EU",null,null,null,26,null,26,null,32,null,32,null,42,null,26,null,16,null,null,null,null,null,null,null,null,null,null,null,null,null,null,200,58000,51]
[2,"NEIL BARRETTMANSneakers",null,null,null,null,null,null,null,"450","NEIL BARRETT","MAN","SHOES","METEORITE KNIT SNEAKERS","PBCT314BM9027 524",null,null,"ND",null,null,null,"Sneakers","MAN SHOES IT/EU","MSIT/EU",null,null,null,null,null,null,null,1,null,4,null,1,null,1,null,null,null,3,null,null,null,null,null,null,null,null,null,null,null,null,10,4500,51]
[2,"NEIL BARRETTMANSneakers",null,null,null,null,null,null,null,"610","NEIL BARRETT","MAN","SHOES","VARSITY BOLT HI SNEAKERS","PBCT326M9001 524",null,null,"ND",null,null,null,"Sneakers","MAN SHOES IT/EU","MSIT/EU",null,null,null,null,null,1,null,1,null,null,null,1,null,1,null,1,null,null,null,null,null,null,null,null,null,null,null,null,null,null,5,3050,51]
[2,"NEIL BARRETTMANSneakers",null,null,null,null,null,null,null,"560","NEIL BARRETT","MAN","SHOES","URBAN RUNNER","BCT900X9001 0303",null,null,"ND",null,null,null,"Sneakers","MAN SHOES IT/EU","MSIT/EU",null,null,null,5,null,8,null,9,null,10,null,9,null,4,null,4,null,null,null,null,null,null,null,null,null,null,null,null,null,null,49,27440,51]
[2,"NEIL BARRETTMANSneakers",null,null,null,null,null,null,null,"560","NEIL BARRETT","MAN","SHOES","URBAN RUNNER","BCT900X9001 167",null,null,"ND",null,null,null,"Sneakers","MAN SHOES IT/EU","MSIT/EU",null,null,null,2,null,3,null,3,null,5,null,10,null,4,null,3,null,null,null,null,null,null,null,null,null,null,null,null,null,null,30,16800,51]
[2,"NEIL BARRETTMANSneakers",null,null,null,null,null,null,null,"560","NEIL BARRETT","MAN","SHOES","URBAN RUNNER","BCT900X9001 308",null,null,"ND",null,null,null,"Sneakers","MAN SHOES IT/EU","MSIT/EU",null,null,null,3,null,2,null,2,null,4,null,5,null,2,null,2,null,null,null,null,null,null,null,null,null,null,null,null,null,null,20,11200,51]
[2,"NEIL BARRETTMANSneakers",null,null,null,null,null,null,null,"560","NEIL BARRETT","MAN","SHOES","URBAN RUNNER","BCT900X9001 524",null,null,"ND",null,null,null,"Sneakers","MAN SHOES IT/EU","MSIT/EU",null,null,null,3,null,3,null,3,null,5,null,10,null,5,null,3,null,null,null,null,null,null,null,null,null,null,null,null,null,null,32,17920,51]
[2,"NEIL BARRETTMANSneakers",null,null,null,null,null,null,null,"530","NEIL BARRETT","MAN","SHOES","FLYKNIT RUNNER","BCT901X9000 0101",null,null,"ND",null,null,null,"Sneakers","MAN SHOES IT/EU","MSIT/EU",null,null,null,8,null,11,null,14,null,12,null,24,null,12,null,6,null,null,null,null,null,null,null,null,null,null,null,null,null,null,87,46110,51]
[2,"NEIL BARRETTMANSneakers",null,null,null,null,null,null,null,"530","NEIL BARRETT","MAN","SHOES","FLYKNIT RUNNER","BCT901X9000 1097",null,null,"ND",null,null,null,"Sneakers","MAN SHOES IT/EU","MSIT/EU",null,null,null,1,null,2,null,9,null,9,null,14,null,10,null,5,null,null,null,null,null,null,null,null,null,null,null,null,null,null,50,26500,51]
[2,"NEIL BARRETTMANSneakers",null,null,null,null,null,null,null,"530","NEIL BARRETT","MAN","SHOES","FLYKNIT RUNNER","BCT901X9000 167",null,null,"ND",null,null,null,"Sneakers","MAN SHOES IT/EU","MSIT/EU",null,null,null,5,null,8,null,8,null,8,null,8,null,8,null,5,null,null,null,null,null,null,null,null,null,null,null,null,null,null,50,26500,51]
[2,"NEIL BARRETTMANSneakers",null,null,null,null,null,null,null,"530","NEIL BARRETT","MAN","SHOES","FLYKNIT RUNNER","BCT901X9000 418",null,null,"ND",null,null,null,"Sneakers","MAN SHOES IT/EU","MSIT/EU",null,null,null,2,null,2,null,12,null,14,null,12,null,5,null,3,null,null,null,null,null,null,null,null,null,null,null,null,null,null,50,26500,51]
[2,"NEIL BARRETTMANSneakers",null,null,null,null,null,null,null,"530","NEIL BARRETT","MAN","SHOES","FLYKNIT RUNNER","BCT901X9000 466",null,null,"ND",null,null,null,"Sneakers","MAN SHOES IT/EU","MSIT/EU",null,null,null,2,null,4,null,7,null,14,null,14,null,6,null,3,null,null,null,null,null,null,null,null,null,null,null,null,null,null,50,26500,51]
[2,"NEIL BARRETTMANSneakers",null,null,null,null,null,null,null,"530","NEIL BARRETT","MAN","SHOES","FLYKNIT RUNNER","BCT901X9000 524",null,null,"ND",null,null,null,"Sneakers","MAN SHOES IT/EU","MSIT/EU",null,null,null,2,null,4,null,8,null,10,null,14,null,7,null,5,null,null,null,null,null,null,null,null,null,null,null,null,null,null,50,26500,51]
[2,"NEIL BARRETTMANSneakers",null,null,null,null,null,null,null,"530","NEIL BARRETT","MAN","SHOES","TENNIS TRAINER","BCT902X9002 0303",null,null,"ND",null,null,null,"Sneakers","MAN SHOES IT/EU","MSIT/EU",null,null,null,2,null,2,null,null,null,1,null,1,null,1,null,1,null,null,null,null,null,null,null,null,null,null,null,null,null,null,8,4240,51]
[2,"NEIL BARRETTMANSneakers",null,null,null,null,null,null,null,"530","NEIL BARRETT","MAN","SHOES","TENNIS TRAINER","BCT902X9002 195",null,null,"ND",null,null,null,"Sneakers","MAN SHOES IT/EU","MSIT/EU",null,null,null,2,null,2,null,null,null,5,null,5,null,null,null,2,null,null,null,null,null,null,null,null,null,null,null,null,null,null,16,8480,51]
[2,"NEIL BARRETTMANSneakers",null,null,null,null,null,null,null,"530","NEIL BARRETT","MAN","SHOES","TENNIS TRAINER","BCT902X9002 524",null,null,"ND",null,null,null,"Sneakers","MAN SHOES IT/EU","MSIT/EU",null,null,null,1,null,1,null,null,null,2,null,2,null,2,null,2,null,null,null,null,null,null,null,null,null,null,null,null,null,null,10,5300,51]
[2,"NEIL BARRETTMANSneakers",null,null,null,null,null,null,null,"530","NEIL BARRETT","MAN","SHOES","TENNIS TRAINER","BCT903X9002 0101",null,null,"ND",null,null,null,"Sneakers","MAN SHOES IT/EU","MSIT/EU",null,null,null,4,null,7,null,7,null,15,null,11,null,1,null,5,null,null,null,null,null,null,null,null,null,null,null,null,null,null,50,26500,51]
[2,"NEIL BARRETTMANSneakers",null,null,null,null,null,null,null,"530","NEIL BARRETT","MAN","SHOES","TENNIS TRAINER","BCT903X9002 0303",null,null,"ND",null,null,null,"Sneakers","MAN SHOES IT/EU","MSIT/EU",null,null,null,3,null,4,null,6,null,12,null,11,null,5,null,5,null,null,null,null,null,null,null,null,null,null,null,null,null,null,46,24380,51]
[2,"NEIL BARRETTMANSneakers",null,null,null,null,null,null,null,"530","NEIL BARRETT","MAN","SHOES","TENNIS TRAINER","BCT903X9002 524",null,null,"ND",null,null,null,"Sneakers","MAN SHOES IT/EU","MSIT/EU",null,null,null,10,null,15,null,15,null,15,null,7,null,6,null,5,null,null,null,null,null,null,null,null,null,null,null,null,null,null,73,38690,51]
[2,"NEIL BARRETTMANSneakers",null,null,null,null,null,null,null,"530","NEIL BARRETT","MAN","SHOES","TENNIS TRAINER","BCT903X9002 526",null,null,"ND",null,null,null,"Sneakers","MAN SHOES IT/EU","MSIT/EU",null,null,null,3,null,3,null,3,null,10,null,8,null,6,null,3,null,null,null,null,null,null,null,null,null,null,null,null,null,null,36,19080,51]
[2,"NEIL BARRETTMANSneakers",null,null,null,null,null,null,null,"320","NEIL BARRETT","MAN","SHOES","BOLT SOCK SNEAKERS","BCT906X9004 01",null,null,"ND",null,null,null,"Sneakers","MAN SHOES IT/EU","MSIT/EU",null,null,null,34,null,35,null,33,null,38,null,32,null,31,null,24,null,null,null,null,null,null,null,null,null,null,null,null,null,null,227,72640,51]
[2,"NEIL BARRETTMANSneakers",null,null,null,null,null,null,null,"320","NEIL BARRETT","MAN","SHOES","BOLT SOCK SNEAKERS","BCT906X9004 415",null,null,"ND",null,null,null,"Sneakers","MAN SHOES IT/EU","MSIT/EU",null,null,null,27,null,27,null,33,null,27,null,33,null,28,null,25,null,null,null,null,null,null,null,null,null,null,null,null,null,null,200,64000,51]
[2,"NEIL BARRETTMANSneakers",null,null,null,null,null,null,null,"290","NEIL BARRETT","MAN","SHOES","BOLT LACE-UP SNEAKERS","BCT907X9005 01",null,null,"ND",null,null,null,"Sneakers","MAN SHOES IT/EU","MSIT/EU",null,null,null,27,null,24,null,68,null,78,null,78,null,43,null,43,null,null,null,null,null,null,null,null,null,null,null,null,null,null,361,104690,51]
[2,"NEIL BARRETTMANSneakers",null,null,null,null,null,null,null,"290","NEIL BARRETT","MAN","SHOES","BOLT LACE-UP SNEAKERS","BCT907X9005 03",null,null,"ND",null,null,null,"Sneakers","MAN SHOES IT/EU","MSIT/EU",null,null,null,46,null,37,null,52,null,67,null,52,null,61,null,46,null,null,null,null,null,null,null,null,null,null,null,null,null,null,361,104690,51]
[2,"NEIL BARRETTMANSneakers",null,null,null,null,null,null,null,"290","NEIL BARRETT","MAN","SHOES","BOLT LACE-UP SNEAKERS","BCT907X9005 17",null,null,"ND",null,null,null,"Sneakers","MAN SHOES IT/EU","MSIT/EU",null,null,null,26,null,26,null,32,null,32,null,32,null,31,null,21,null,null,null,null,null,null,null,null,null,null,null,null,null,null,200,58000,51]
[2,"NEIL BARRETTMANSneakers",null,null,null,null,null,null,null,"290","NEIL BARRETT","MAN","SHOES","BOLT LACE-UP SNEAKERS","BCT907X9005 415",null,null,"ND",null,null,null,"Sneakers","MAN SHOES IT/EU","MSIT/EU",null,null,null,27,null,28,null,28,null,33,null,28,null,28,null,28,null,null,null,null,null,null,null,null,null,null,null,null,null,null,200,58000,51]
[2,"NEIL BARRETTMANSneakers",null,null,null,null,null,null,null,"290","NEIL BARRETT","MAN","SHOES","BOLT LACE-UP SNEAKERS","BCT907X9005 554",null,null,"ND",null,null,null,"Sneakers","MAN SHOES IT/EU","MSIT/EU",null,null,null,6,null,7,null,8,null,8,null,8,null,7,null,6,null,null,null,null,null,null,null,null,null,null,null,null,null,null,50,14500,51]
[2,"NEIL BARRETTMANSweatshirt",null,null,null,null,null,null,null,"498","NEIL BARRETT","MAN","CLOTHING","FLASH-JULIE VE SWEATSHIRT","BJS557SM502P 2290",null,null,"ND",null,null,"Sweatshirts","Sweatshirt","INTERNATIONAL","INT",null,null,null,2,2,2,1,null,null,null,null,null,null,null,null,null,null,null,null,null,null,null,null,null,null,null,null,null,null,null,7,3486,51]
[2,"NEIL BARRETTMANSweatshirt",null,null,null,null,null,null,null,"670","NEIL BARRETT","MAN","CLOTHING","MOUTH-JULIE VE SWEATSHIRT","BJS559SM503P 2384",null,null,"ND",null,null,"Sweatshirts","Sweatshirt","INTERNATIONAL","INT",null,null,null,null,1,null,null,1,1,null,null,null,null,null,null,null,null,null,null,null,null,null,null,null,null,null,null,null,null,null,3,2010,51]
[2,"NEIL BARRETTMANSweatshirt",null,null,null,null,null,null,null,"530","NEIL BARRETT","MAN","CLOTHING","SHINJUKU-SOHO SWEATSHIRT","BJS561SM507P 1874",null,null,"ND",null,null,"Sweatshirts","Sweatshirt","INTERNATIONAL","INT",null,null,null,null,1,1,1,null,null,null,null,null,null,null,null,null,null,null,null,null,null,null,null,null,null,null,null,null,null,null,{"$f":"SUM(Y106:BB106)","v":3},1590,51]
[2,"NEIL BARRETTMANSweatshirt",null,null,null,null,null,null,null,"745","NEIL BARRETT","MAN","CLOTHING","SHINJUKU-SOHO SWEATSHIRT","BJS562SM506P 1874",null,null,"ND",null,null,"Sweatshirts","Sweatshirt","INTERNATIONAL","INT",null,null,null,null,1,null,null,1,null,null,null,null,null,null,null,null,null,null,null,null,null,null,null,null,null,null,null,null,null,null,2,1490,51]
[2,"NEIL BARRETTMANSweatshirt",null,null,null,null,null,null,null,"515","NEIL BARRETT","MAN","CLOTHING","METEORITES JERSEY SWEATSHIRT","PBJS491SM518S 524",null,null,"ND",null,null,"Sweatshirts","Sweatshirt","INTERNATIONAL","INT",null,null,null,null,null,null,1,null,null,null,null,null,null,null,null,null,null,null,null,null,null,null,null,null,null,null,null,null,null,null,1,515,51]
[2,"NEIL BARRETTMANSweatshirt",null,null,null,null,null,null,null,"465","NEIL BARRETT","MAN","CLOTHING","ROCKSTAR JERSEY SWEATSHIRT","PBJS493SM532S 096",null,null,"ND",null,null,"Sweatshirts","Sweatshirt","INTERNATIONAL","INT",null,null,null,1,null,1,null,null,null,null,null,null,null,null,null,null,null,null,null,null,null,null,null,null,null,null,null,null,null,null,2,930,51]
[2,"NEIL BARRETTMANSweatshirt",null,null,null,null,null,null,null,"490","NEIL BARRETT","MAN","CLOTHING","RHINESTONE JERSEY SWEATSHIRT","PBJS494M534S 542",null,null,"ND",null,null,"Sweatshirts","Sweatshirt","INTERNATIONAL","INT",null,null,null,null,1,1,null,null,null,null,null,null,null,null,null,null,null,null,null,null,null,null,null,null,null,null,null,null,null,null,2,980,51]
[2,"NEIL BARRETTMANSweatshirt",null,null,null,null,null,null,null,"525","NEIL BARRETT","MAN","CLOTHING","MODERNIST JERSEY SWEATSHIRT","PBJS499M516C 1118",null,null,"ND",null,null,"Sweatshirts","Sweatshirt","INTERNATIONAL","INT",null,null,null,null,1,null,null,null,1,null,null,null,null,null,null,null,null,null,null,null,null,null,null,null,null,null,null,null,null,null,2,1050,51]
[2,"NEIL BARRETTMANSweatshirt",null,null,null,null,null,null,null,"525","NEIL BARRETT","MAN","CLOTHING","MODERNIST JERSEY SWEATSHIRT","PBJS499M516C 2353",null,null,"ND",null,null,"Sweatshirts","Sweatshirt","INTERNATIONAL","INT",null,null,null,null,1,null,null,null,null,null,null,null,null,null,null,null,null,null,null,null,null,null,null,null,null,null,null,null,null,null,1,525,51]
[2,"NEIL BARRETTMANSweatshirt",null,null,null,null,null,null,null,"665","NEIL BARRETT","MAN","CLOTHING","MODERNIST JERSEY SWEATSHIRT","PBJS500M516C 1118",null,null,"ND",null,null,"Sweatshirts","Sweatshirt","INTERNATIONAL","INT",null,null,null,null,null,null,null,null,1,null,null,null,null,null,null,null,null,null,null,null,null,null,null,null,null,null,null,null,null,null,1,665,51]
[2,"NEIL BARRETTMANSweatshirt",null,null,null,null,null,null,null,"480","NEIL BARRETT","MAN","CLOTHING","FLAME THUNDERBOLT JERSEY SWEATSHIRT","PBJS501SM538S 094",null,null,"ND",null,null,"Sweatshirts","Sweatshirt","INTERNATIONAL","INT",null,null,null,null,2,3,null,null,null,null,null,null,null,null,null,null,null,null,null,null,null,null,null,null,null,null,null,null,null,null,5,2400,51]
[2,"NEIL BARRETTMANSweatshirt",null,null,null,null,null,null,null,"470","NEIL BARRETT","MAN","CLOTHING","DOUBLE THUNDER JERSEY SWEATSHIRT","PBJS504SM540S 1133",null,null,"ND",null,null,"Sweatshirts","Sweatshirt","INTERNATIONAL","INT",null,null,null,null,2,1,1,null,null,null,null,null,null,null,null,null,null,null,null,null,null,null,null,null,null,null,null,null,null,null,4,1880,51]
[2,"NEIL BARRETTMANSweatshirt",null,null,null,null,null,null,null,"780","NEIL BARRETT","MAN","CLOTHING","ERGODYNAMIC JERSEY SWEATSHIRT","PBJS510M521C 524",null,null,"ND",null,null,"Sweatshirts","Sweatshirt","INTERNATIONAL","INT",null,null,null,1,1,null,null,null,null,null,null,null,null,null,null,null,null,null,null,null,null,null,null,null,null,null,null,null,null,null,2,1560,51]
[2,"NEIL BARRETTMANSweatshirt",null,null,null,null,null,null,null,"720","NEIL BARRETT","MAN","CLOTHING","FLAME FAIR-ISLE JERSEY SWEATSHIRT","PBJS518SM550S 094",null,null,"ND",null,null,"Sweatshirts","Sweatshirt","INTERNATIONAL","INT",null,null,null,null,3,2,null,null,null,null,null,null,null,null,null,null,null,null,null,null,null,null,null,null,null,null,null,null,null,null,5,3600,51]
[2,"NEIL BARRETTMANT-Shirt",null,null,null,null,null,null,null,"200","NEIL BARRETT","MAN","CLOTHING","DOUBLE THUNDER JERSEY T-SHIRT","PBJT546SM503S 1116",null,null,"ND",null,null,null,"T-Shirt","INTERNATIONAL","INT",null,null,null,1,1,null,null,null,null,null,null,null,null,null,null,null,null,null,null,null,null,null,null,null,null,null,null,null,null,null,2,400,51]
[2,"NEIL BARRETTMANT-Shirt",null,null,null,null,null,null,null,"200","NEIL BARRETT","MAN","CLOTHING","DOUBLE THUNDER JERSEY T-SHIRT","PBJT546SM503S 1133",null,null,"ND",null,null,null,"T-Shirt","INTERNATIONAL","INT",null,null,null,3,2,null,1,1,null,null,null,null,null,null,null,null,null,null,null,null,null,null,null,null,null,null,null,null,null,null,7,1400,51]
[2,"NEIL BARRETTMANT-Shirt",null,null,null,null,null,null,null,"280","NEIL BARRETT","MAN","CLOTHING","TIGER BOLT JERSEY T-SHIRT","PBJT553SM508S 524",null,null,"ND",null,null,null,"T-Shirt","INTERNATIONAL","INT",null,null,null,null,null,1,null,null,null,null,null,null,null,null,null,null,null,null,null,null,null,null,null,null,null,null,null,null,null,null,1,280,51]
[2,"NEIL BARRETTMANT-Shirt",null,null,null,null,null,null,null,"230","NEIL BARRETT","MAN","CLOTHING","METEORITES JERSEY T-SHIRT","PBJT554SM511S 524",null,null,"ND",null,null,null,"T-Shirt","INTERNATIONAL","INT",null,null,null,1,1,null,null,1,null,null,null,null,null,null,null,null,null,null,null,null,null,null,null,null,null,null,null,null,null,null,3,690,51]
[2,"NEIL BARRETTMANT-Shirt",null,null,null,null,null,null,null,"230","NEIL BARRETT","MAN","CLOTHING","METEORITES JERSEY T-SHIRT","PBJT554SM511S 526",null,null,"ND",null,null,null,"T-Shirt","INTERNATIONAL","INT",null,null,null,null,3,2,1,null,null,null,null,null,null,null,null,null,null,null,null,null,null,null,null,null,null,null,null,null,null,null,6,1380,51]
[2,"NEIL BARRETTMANT-Shirt",null,null,null,null,null,null,null,"235","NEIL BARRETT","MAN","CLOTHING","METEORITES JERSEY T-SHIRT","PBJT555SM510S 524",null,null,"ND",null,null,null,"T-Shirt","INTERNATIONAL","INT",null,null,null,null,2,null,null,null,null,null,null,null,null,null,null,null,null,null,null,null,null,null,null,null,null,null,null,null,null,null,2,470,51]
[2,"NEIL BARRETTMANT-Shirt",null,null,null,null,null,null,null,"235","NEIL BARRETT","MAN","CLOTHING","METEORITES JERSEY T-SHIRT","PBJT555SM510S 526",null,null,"ND",null,null,null,"T-Shirt","INTERNATIONAL","INT",null,null,null,null,null,1,1,2,null,null,null,null,null,null,null,null,null,null,null,null,null,null,null,null,null,null,null,null,null,null,4,940,51]
[2,"NEIL BARRETTMANT-Shirt",null,null,null,null,null,null,null,"180","NEIL BARRETT","MAN","CLOTHING","ROCKSTAR JERSEY T-SHIRT","PBJT564SM512S 096",null,null,"ND",null,null,null,"T-Shirt","INTERNATIONAL","INT",null,null,null,null,null,1,1,null,null,null,null,null,null,null,null,null,null,null,null,null,null,null,null,null,null,null,null,null,null,null,2,360,51]
[2,"NEIL BARRETTMANT-Shirt",null,null,null,null,null,null,null,"280","NEIL BARRETT","MAN","CLOTHING","\"PUNK'D BEAR\" JERSEY T-SHIRT","PBJT575BM526S 1076",null,null,"ND",null,null,null,"T-Shirt","INTERNATIONAL","INT",null,null,null,null,null,2,null,null,null,null,null,null,null,null,null,null,null,null,null,null,null,null,null,null,null,null,null,null,null,null,2,560,51]
[2,"NEIL BARRETTMANT-Shirt",null,null,null,null,null,null,null,"320","NEIL BARRETT","MAN","CLOTHING","ANNIVERSARY JERSEY T-SHIRT","PBJT577SM520S 821",null,null,"ND",null,null,null,"T-Shirt","INTERNATIONAL","INT",null,null,null,1,null,1,null,null,null,null,null,null,null,null,null,null,null,null,null,null,null,null,null,null,null,null,null,null,null,null,2,640,51]
[2,"NEIL BARRETTMANTrousers",null,null,null,null,null,null,null,"720","NEIL BARRETT","MAN","CLOTHING","DOUBLE STRIPES","BJP159AHM515 2466",null,null,"ND",null,null,null,"Trousers","INTERNATIONAL","INT",null,null,null,1,2,2,1,1,null,null,null,null,null,null,null,null,null,null,null,null,null,null,null,null,null,null,null,null,null,null,7,5040,51]
[2,"NEIL BARRETTMANTrousers",null,null,null,null,null,null,null,"615","NEIL BARRETT","MAN","CLOTHING","DOUBLE STRIPES","BJP165AHM520 042",null,null,"ND",null,null,null,"Trousers","INTERNATIONAL","INT",null,null,null,1,2,1,1,null,null,null,null,null,null,null,null,null,null,null,null,null,null,null,null,null,null,null,null,null,null,null,5,3075,51]
[2,"NEIL BARRETTMANTrousers",null,null,null,null,null,null,null,"325","NEIL BARRETT","MAN","CLOTHING","ELONGATED JERSEY PANTS","PXJP8561CH 01",null,null,"ND",null,null,null,"Trousers","INTERNATIONAL","INT",null,null,null,null,null,1,null,null,null,null,null,null,null,null,null,null,null,null,null,null,null,null,null,null,null,null,null,null,null,null,1,325,51]
[2,"NEIL BARRETTMANTrousers",null,null,null,null,null,null,null,"630","NEIL BARRETT","MAN","CLOTHING","SHINJUKU-SOHO PANTS","BDE277SHM805S 1874",null,null,"ND",null,null,null,"Trousers","JEANS","JEANS",null,null,null,null,null,null,null,null,null,1,1,null,null,null,null,null,null,null,null,null,null,null,null,null,null,null,null,null,null,null,2,1260,51]
[2,"NEIL BARRETTMANTrousers",null,null,null,null,null,null,null,"825","NEIL BARRETT","MAN","CLOTHING","MULTI-ZIP MOTOR PANTS","BPA725TM001T 429",null,null,"ND",null,null,null,"Trousers","MAN CLOTHING IT/EU","MCIT/EU",null,null,null,null,1,1,null,null,null,null,null,null,null,null,null,null,null,null,null,null,null,null,null,null,null,null,null,null,null,null,2,1650,51]
[2,"NEIL BARRETTMANTrousers",null,null,null,null,null,null,null,"550","NEIL BARRETT","MAN","CLOTHING","TRAVEL STREET-S PANTS","BPA730M064 01",null,null,"ND",null,null,null,"Trousers","MAN CLOTHING IT/EU","MCIT/EU",null,null,null,null,null,1,null,1,null,null,null,null,null,null,null,null,null,null,null,null,null,null,null,null,null,null,null,null,null,null,2,1100,51]
[2,"NEIL BARRETTMANTrousers",null,null,null,null,null,null,null,"535","NEIL BARRETT","MAN","CLOTHING","TUXEDO RIB CUFF PANTS","PBPA413NHM041 0101",null,null,"ND",null,null,null,"Trousers","MAN CLOTHING IT/EU","MCIT/EU",null,null,null,1,1,null,null,null,null,null,null,null,null,null,null,null,null,null,null,null,null,null,null,null,null,null,null,null,null,null,2,1070,51]
[2,"NEIL BARRETTMANTrousers",null,null,null,null,null,null,null,"445","NEIL BARRETT","MAN","CLOTHING","CARROT TROUSERS","PBPA703HM004 01",null,null,"ND",null,null,null,"Trousers","MAN CLOTHING IT/EU","MCIT/EU",null,null,null,null,null,null,1,null,null,null,null,null,null,null,null,null,null,null,null,null,null,null,null,null,null,null,null,null,null,null,1,445,51]
[2,"NEIL BARRETTMANTrousers",null,null,null,null,null,null,null,"445","NEIL BARRETT","MAN","CLOTHING","CARROT TROUSERS","PBPA703M004 01",null,null,"ND",null,null,null,"Trousers","MAN CLOTHING IT/EU","MCIT/EU",null,null,null,null,null,null,2,null,null,null,null,null,null,null,null,null,null,null,null,null,null,null,null,null,null,null,null,null,null,null,2,890,51]
[2,"NEIL BARRETTMANTrousers",null,null,null,null,null,null,null,"445","NEIL BARRETT","MAN","CLOTHING","CARROT TROUSERS","PBPA703M004 190",null,null,"ND",null,null,null,"Trousers","MAN CLOTHING IT/EU","MCIT/EU",null,null,null,null,null,null,1,1,null,null,null,null,null,null,null,null,null,null,null,null,null,null,null,null,null,null,null,null,null,null,2,890,51]
[2,"NEIL BARRETTMANTrousers",null,null,null,null,null,null,null,"545","NEIL BARRETT","MAN","CLOTHING","ERGODYNAMIC TROUSERS","PBPA712AHM050 01",null,null,"ND",null,null,null,"Trousers","MAN CLOTHING IT/EU","MCIT/EU",null,null,null,1,1,null,null,null,null,null,null,null,null,null,null,null,null,null,null,null,null,null,null,null,null,null,null,null,null,null,{"$f":"SUM(Y138:BB138)","v":2},1090,51]
[2,"NEIL BARRETTMANTrousers",null,null,null,null,null,null,null,"545","NEIL BARRETT","MAN","CLOTHING","ERGODYNAMIC TROUSERS","PBPA712AM050 01",null,null,"ND",null,null,null,"Trousers","MAN CLOTHING IT/EU","MCIT/EU",null,null,null,null,null,null,1,null,null,null,null,null,null,null,null,null,null,null,null,null,null,null,null,null,null,null,null,null,null,null,1,{"$f":"BC139*J139","v":545},51]
[2,"NEIL BARRETTMANWindbreakers",null,null,null,null,null,null,null,"625","NEIL BARRETT","MAN","CLOTHING","GLOBE CAMO WINDBREAKER","PXSP302C55 1854",null,null,"ND",null,null,"Outerwear","Windbreakers","INTERNATIONAL","INT",null,null,null,null,null,null,1,null,null,null,null,null,null,null,null,null,null,null,null,null,null,null,null,null,null,null,null,null,null,null,1,625,51]
[2,"NEIL BARRETTMANWool Hat",null,null,null,null,null,null,null,"175","NEIL BARRETT","MAN","ACCESSORIES","WOOL B","BCP281M9512 01",null,null,"ND",null,null,"Hats","Wool Hat","INTERNATIONAL","INT",2,null,null,null,null,null,null,null,null,null,null,null,null,null,null,null,null,null,null,null,null,null,null,null,null,null,null,null,null,null,2,350,51]
[2,"NEIL BARRETTWOMANBaseball Cap",null,null,null,null,null,null,null,"305","NEIL BARRETT","WOMAN","ACCESSORIES","BASEBALL CAP","NCP131A9513 042",null,null,"ND",null,null,"Hats","Baseball Cap","INTERNATIONAL","INT",2,null,null,null,null,null,null,null,null,null,null,null,null,null,null,null,null,null,null,null,null,null,null,null,null,null,null,null,null,null,2,610,51]
[2,"NEIL BARRETTWOMANCoats",null,null,null,null,null,null,null,"2020","NEIL BARRETT","WOMAN","CLOTHING","MODERNIST LACE ","PNCA227EM035C 2332",null,null,"ND",null,null,"Outerwear","Coats","WOMAN CLOTHING IT/EU","WCIT/EU",null,1,2,null,null,null,null,null,null,null,null,null,null,null,null,null,null,null,null,null,null,null,null,null,null,null,null,null,null,null,3,6060,51]
[2,"NEIL BARRETTWOMANJacket",null,null,null,null,null,null,null,"990","NEIL BARRETT","WOMAN","CLOTHING","SQUARE SHOULDER JACKET","NGI403AM088C 895",null,null,"ND",null,null,null,"Jacket","WOMAN CLOTHING IT/EU","WCIT/EU",null,null,1,1,null,null,null,null,null,null,null,null,null,null,null,null,null,null,null,null,null,null,null,null,null,null,null,null,null,null,2,1980,51]
[2,"NEIL BARRETTWOMANJacket",null,null,null,null,null,null,null,"1120","NEIL BARRETT","WOMAN","CLOTHING","MASCULINE SLEEVE JACKET","NGI95NA094C 01",null,null,"ND",null,null,null,"Jacket","WOMAN CLOTHING IT/EU","WCIT/EU",null,null,null,1,1,null,null,null,null,null,null,null,null,null,null,null,null,null,null,null,null,null,null,null,null,null,null,null,null,null,2,2240,51]
[2,"NEIL BARRETTWOMANJacket",null,null,null,null,null,null,null,"1365","NEIL BARRETT","WOMAN","CLOTHING","TUXEDO DOUBLE JACKET","PNGI398CM006C 01",null,null,"ND",null,null,"Outerwear","Jacket","WOMAN CLOTHING IT/EU","WCIT/EU",null,1,null,1,null,null,null,null,null,null,null,null,null,null,null,null,null,null,null,null,null,null,null,null,null,null,null,null,null,null,2,2730,51]
[2,"NEIL BARRETTWOMANLeather",null,null,null,null,null,null,null,"1015","NEIL BARRETT","WOMAN","CLOTHING","TAPPERED LEATHER ","NPE424M708 01",null,null,"ND",null,null,null,"Leather","INTERNATIONAL","INT",null,null,null,null,1,1,null,null,null,null,null,null,null,null,null,null,null,null,null,null,null,null,null,null,null,null,null,null,null,null,2,2030,51]
[2,"NEIL BARRETTWOMANLeather",null,null,null,null,null,null,null,"1015","NEIL BARRETT","WOMAN","CLOTHING","TAPPERED LEATHER ","NPE424M708 1193",null,null,"ND",null,null,null,"Leather","INTERNATIONAL","INT",null,null,null,null,null,null,1,null,null,null,null,null,null,null,null,null,null,null,null,null,null,null,null,null,null,null,null,null,null,null,1,1015,51]
[2,"NEIL BARRETTWOMANLeather",null,null,null,null,null,null,null,"1110","NEIL BARRETT","WOMAN","CLOTHING","CUT AWAY LEATHER ","NPE426M708 01",null,null,"ND",null,null,null,"Leather","INTERNATIONAL","INT",null,null,null,null,null,null,1,null,null,null,null,null,null,null,null,null,null,null,null,null,null,null,null,null,null,null,null,null,null,null,1,1110,51]
[2,"NEIL BARRETTWOMANMidi Skirt",null,null,null,null,null,null,null,"480","NEIL BARRETT","WOMAN","CLOTHING","LONG A LINE SKIRT","NGO93HC1285 01",null,null,"ND",null,null,"Skirts","Midi Skirt","WOMAN CLOTHING IT/EU","WCIT/EU",null,null,null,1,null,null,null,null,null,null,null,null,null,null,null,null,null,null,null,null,null,null,null,null,null,null,null,null,null,null,1,480,51]
[2,"NEIL BARRETTWOMANSandals",null,null,null,null,null,null,null,"75","NEIL BARRETT","WOMAN","SHOES","SANDALS","PNSA309011 167",null,null,"ND",null,null,null,"Sandals","INTERNATIONAL","INT",null,null,null,null,null,1,null,null,null,null,null,null,null,null,null,null,null,null,null,null,null,null,null,null,null,null,null,null,null,null,1,75,51]
[2,"NEIL BARRETTWOMANShirt",null,null,null,null,null,null,null,"685","NEIL BARRETT","WOMAN","CLOTHING","PIERCED COLLAR SHIRT ","PNCM264M016 2261",null,null,"ND",null,null,"Outerwear","Shirt","INTERNATIONAL","INT",null,null,null,1,2,null,null,null,null,null,null,null,null,null,null,null,null,null,null,null,null,null,null,null,null,null,null,null,null,null,3,2055,51]
[2,"NEIL BARRETTWOMANShirt",null,null,null,null,null,null,null,"685","NEIL BARRETT","WOMAN","CLOTHING","PIERCED COLLAR SHIRT ","PNCM264M016 944",null,null,"ND",null,null,"Outerwear","Shirt","INTERNATIONAL","INT",null,null,null,null,1,null,null,null,null,null,null,null,null,null,null,null,null,null,null,null,null,null,null,null,null,null,null,null,null,null,1,685,51]
[2,"NEIL BARRETTWOMANShort Dress",null,null,null,null,null,null,null,"550","NEIL BARRETT","WOMAN","CLOTHING","FALL-AWAY CREPE DRESS","PNVE482JM021 554",null,null,"ND",null,null,null,"Short Dress","WOMAN CLOTHING IT/EU","WCIT/EU",null,null,1,1,null,null,null,null,null,null,null,null,null,null,null,null,null,null,null,null,null,null,null,null,null,null,null,null,null,null,2,1100,51]
[2,"NEIL BARRETTWOMANShorts",null,null,null,null,null,null,null,"2690","NEIL BARRETT","WOMAN","CLOTHING","OVERSIZED LEATHER SHORTS","NPE422CM714C 140",null,null,"ND",null,null,"Trousers & Shorts","Shorts","INTERNATIONAL","INT",null,null,null,null,1,2,1,null,null,null,null,null,null,null,null,null,null,null,null,null,null,null,null,null,null,null,null,null,null,null,4,10760,51]
[2,"NEIL BARRETTWOMANSneakers",null,null,null,null,null,null,null,"530","NEIL BARRETT","WOMAN","SHOES","TENNIS TRAINER","NCT902X9002 0303",null,null,"ND",null,null,null,"Sneakers","WOMAN SHOES IT","WSIT",null,null,null,null,null,5,null,5,null,5,null,null,null,1,null,null,null,null,null,null,null,null,null,null,null,null,null,null,null,null,16,8480,51]
[2,"NEIL BARRETTWOMANSneakers",null,null,null,null,null,null,null,"530","NEIL BARRETT","WOMAN","SHOES","TENNIS TRAINER","NCT902X9002 195",null,null,"ND",null,null,null,"Sneakers","WOMAN SHOES IT","WSIT",null,null,null,null,null,4,null,6,null,7,null,3,null,null,null,null,null,null,null,null,null,null,null,null,null,null,null,null,null,null,20,10600,51]
[2,"NEIL BARRETTWOMANSneakers",null,null,null,null,null,null,null,"530","NEIL BARRETT","WOMAN","SHOES","TENNIS TRAINER","NCT902X9002 524",null,null,"ND",null,null,null,"Sneakers","WOMAN SHOES IT","WSIT",null,null,null,1,null,2,null,2,null,2,null,2,null,null,null,null,null,null,null,null,null,null,null,null,null,null,null,null,null,null,9,4770,51]
[2,"NEIL BARRETTWOMANSneakers",null,null,null,null,null,null,null,"530","NEIL BARRETT","WOMAN","SHOES","TENNIS TRAINER","NCT902X9002 526",null,null,"ND",null,null,null,"Sneakers","WOMAN SHOES IT","WSIT",null,null,null,null,null,3,null,3,null,1,null,1,null,null,null,null,null,null,null,null,null,null,null,null,null,null,null,null,null,null,8,4240,51]
[2,"NEIL BARRETTWOMANSneakers",null,null,null,null,null,null,null,"530","NEIL BARRETT","WOMAN","SHOES","TENNIS TRAINER","NCT903X9002 0101",null,null,"ND",null,null,null,"Sneakers","WOMAN SHOES IT","WSIT",null,null,null,1,null,7,null,16,null,21,null,3,null,2,null,null,null,null,null,null,null,null,null,null,null,null,null,null,null,null,50,26500,51]
[2,"NEIL BARRETTWOMANSneakers",null,null,null,null,null,null,null,"530","NEIL BARRETT","WOMAN","SHOES","TENNIS TRAINER","NCT903X9002 0303",null,null,"ND",null,null,null,"Sneakers","WOMAN SHOES IT","WSIT",null,null,null,3,null,10,null,16,null,16,null,3,null,2,null,null,null,null,null,null,null,null,null,null,null,null,null,null,null,null,50,26500,51]
[2,"NEIL BARRETTWOMANSneakers",null,null,null,null,null,null,null,"530","NEIL BARRETT","WOMAN","SHOES","TENNIS TRAINER","NCT903X9002 524",null,null,"ND",null,null,null,"Sneakers","WOMAN SHOES IT","WSIT",null,null,null,2,null,9,null,17,null,15,null,5,null,2,null,null,null,null,null,null,null,null,null,null,null,null,null,null,null,null,50,26500,51]
[2,"NEIL BARRETTWOMANSneakers",null,null,null,null,null,null,null,"530","NEIL BARRETT","WOMAN","SHOES","SLIP ON LOGO","NCT904X9002 0303",null,null,"ND",null,null,null,"Sneakers","WOMAN SHOES IT","WSIT",null,null,null,5,null,10,null,12,null,19,null,3,null,1,null,null,null,null,null,null,null,null,null,null,null,null,null,null,null,null,50,26500,51]
[2,"NEIL BARRETTWOMANSneakers",null,null,null,null,null,null,null,"530","NEIL BARRETT","WOMAN","SHOES","SLIP ON LOGO","NCT904X9002 524",null,null,"ND",null,null,null,"Sneakers","WOMAN SHOES IT","WSIT",null,null,null,1,null,10,null,14,null,19,null,5,null,1,null,null,null,null,null,null,null,null,null,null,null,null,null,null,null,null,50,26500,51]
[2,"NEIL BARRETTWOMANSneakers",null,null,null,null,null,null,null,"530","NEIL BARRETT","WOMAN","SHOES","SLIP ON LOGO","NCT904X9002 526",null,null,"ND",null,null,null,"Sneakers","WOMAN SHOES IT","WSIT",null,null,null,3,null,11,null,16,null,16,null,3,null,1,null,null,null,null,null,null,null,null,null,null,null,null,null,null,null,null,50,26500,51]
[2,"NEIL BARRETTWOMANSneakers",null,null,null,null,null,null,null,"530","NEIL BARRETT","WOMAN","SHOES","SLIP ON LOGO","NCT905X9003 0101",null,null,"ND",null,null,null,"Sneakers","WOMAN SHOES IT","WSIT",null,null,null,1,null,7,null,15,null,21,null,5,null,1,null,null,null,null,null,null,null,null,null,null,null,null,null,null,null,null,50,26500,51]
[2,"NEIL BARRETTWOMANSneakers",null,null,null,null,null,null,null,"530","NEIL BARRETT","WOMAN","SHOES","SLIP ON LOGO","NCT905X9003 1147",null,null,"ND",null,null,null,"Sneakers","WOMAN SHOES IT","WSIT",null,null,null,1,null,11,null,15,null,18,null,4,null,1,null,null,null,null,null,null,null,null,null,null,null,null,null,null,null,null,50,26500,51]
[2,"NEIL BARRETTWOMANSneakers",null,null,null,null,null,null,null,"530","NEIL BARRETT","WOMAN","SHOES","SLIP ON LOGO","NCT905X9003 308",null,null,"ND",null,null,null,"Sneakers","WOMAN SHOES IT","WSIT",null,null,null,1,null,10,null,15,null,14,null,10,null,null,null,null,null,null,null,null,null,null,null,null,null,null,null,null,null,null,50,26500,51]
[2,"NEIL BARRETTWOMANSneakers",null,null,null,null,null,null,null,"530","NEIL BARRETT","WOMAN","SHOES","SLIP ON LOGO","NCT905X9003 524",null,null,"ND",null,null,null,"Sneakers","WOMAN SHOES IT","WSIT",null,null,null,1,null,10,null,15,null,20,null,3,null,1,null,null,null,null,null,null,null,null,null,null,null,null,null,null,null,null,50,26500,51]
[2,"NEIL BARRETTWOMANSweaters",null,null,null,null,null,null,null,"375","NEIL BARRETT","WOMAN","CLOTHING","TECHNICAL KNIT SWEATER ","NMA350E620 03",null,null,"ND",null,null,"Knitwear","Sweaters","INTERNATIONAL","INT",null,null,null,null,null,1,null,null,null,null,null,null,null,null,null,null,null,null,null,null,null,null,null,null,null,null,null,null,null,null,{"$f":"SUM(Y170:BB170)","v":1},375,51]
[2,"NEIL BARRETTWOMANTrousers",null,null,null,null,null,null,null,"630","NEIL BARRETT","WOMAN","CLOTHING","HIGH WAIST TAPE TROUSERS","PNPA481VHM016 2261",null,null,"ND",null,null,null,"Trousers","WOMAN CLOTHING IT/EU","WCIT/EU",null,null,1,1,null,null,null,null,null,null,null,null,null,null,null,null,null,null,null,null,null,null,null,null,null,null,null,null,null,null,2,1260,51]
[2,"NEIL BARRETTWOMANTrousers",null,null,null,null,null,null,null,"1170","NEIL BARRETT","WOMAN","CLOTHING","CONTRAST MATT LEATHER TROUSERS","PNPE414CHM708C 944",null,null,"ND",null,null,null,"Trousers","INTERNATIONAL","INT",null,null,null,null,1,1,null,null,null,null,null,null,null,null,null,null,null,null,null,null,null,null,null,null,null,null,null,null,null,null,2,2340,51]
[]
[null,null,null,null,null,null,null,null,null,null,null,null,null,null,null,null,null,null,null,null,null,null,null,null,null,null,null,null,null,null,null,null,null,null,null,null,null,null,null,null,null,null,null,null,null,null,null,null,null,null,null,null,null,null,{"$f":"SUM(BC10:BC172)","v":3482},{"$f":"SUM(BD10:BD172)","v":1405035}]